fUSD/lending_fUSD_20240814
["ID","MTS","AMOUNT","RATE_DAILY","PERIOD"]
[334851422,1723609379931,500.0,0.00013698,2]
[334851423,1723609380199,500.0,0.00013972,2]
[334851424,1723609381170,500.0,0.00013698,2]
[334851425,1723609381630,594.03,0.00013698,2]
[334851426,1723609381731,2129.2,0.00013698,2]
[334851427,1723609381771,10265.6,0.00013698,2]
[334851428,1723609381802,500.0,0.00013972,2]
[334851429,1723609381827,594.03,0.00013972,2]
[334851430,1723609382083,2129.2,0.00013972,2]
[334851431,1723609382114,10265.6,0.00013972,2]
[334851432,1723609382906,500.0,0.00013698,2]
[334851433,1723609383159,500.0,0.00013972,2]
[334851439,1723609384301,500.0,0.00013698,2]
[334851440,1723609384576,500.0,0.00013972,2]
[334851441,1723609386557,616.67017112,0.00013698,2]
[334851442,1723609386704,914.03,0.00013698,2]
[334851443,1723609386771,500.0,0.00013698,2]
[334851444,1723609386985,914.03,0.00013972,2]
[334851445,1723609387040,500.0,0.00013972,2]
[334851446,1723609387853,500.0,0.00013698,2]
[334851447,1723609387970,500.0,0.00013698,2]
[334851448,1723609388139,1686.09,0.00013698,2]
[334851449,1723609388218,500.0,0.00013972,2]
[334851450,1723609388427,1686.09,0.00013972,2]
[334851451,1723609388740,500.0,0.00013698,2]
[334851452,1723609389070,500.0,0.00013972,2]
[334851453,1723609389478,276.89170897,0.00013698,2]
[334851454,1723609390019,4002.62,0.00013698,2]
[334851455,1723609390413,4002.62,0.00013972,2]
[334851456,1723609390665,1713.7,0.00013698,2]
[334851457,1723609391275,1713.7,0.00013972,2]
[334851458,1723609391327,1361.46,0.00013698,2]
[334851459,1723609391595,1361.46,0.00013972,2]
[334851460,1723609392418,523.68,0.00013698,2]
[334851461,1723609392484,523.68,0.00013972,2]
[334851462,1723609392698,500.0,0.00013698,2]
[334851463,1723609392971,500.0,0.00013972,2]
[334851464,1723609393454,1371.76570842,0.00013698,2]
[334851465,1723609393642,3323.03,0.00013698,2]
[334851466,1723609393672,2260.76,0.00013698,2]
[334851467,1723609393740,546.87,0.00013698,2]
[334851468,1723609393871,1866.29,0.00013698,2]
[334851469,1723609393929,3323.03,0.00013972,2]
[334851470,1723609393959,2260.76,0.00013972,2]
[334851471,1723609394016,546.87,0.00013972,2]
[334851472,1723609394119,1866.29,0.00013972,2]
[334851474,1723609394979,589.26,0.00013698,2]
[334851475,1723609395235,589.26,0.00013972,2]
[334851476,1723609396083,613.17,0.00013698,2]
[334851477,1723609396333,613.17,0.00013972,2]
[334851478,1723609397018,500.0,0.00013698,2]
[334851479,1723609397305,500.0,0.00013972,2]
[334851480,1723609398751,500.0,0.00013698,2]
[334851481,1723609399083,500.0,0.00013972,2]
[334851482,1723609400770,500.0,0.00013698,2]
[334851483,1723609400817,3342.22,0.00013698,2]
[334851484,1723609401081,3342.22,0.00013972,2]
[334851485,1723609401305,2473.92,0.00013698,2]
[334851486,1723609401580,2473.92,0.00013972,2]
[334851487,1723609401985,6418.05,0.00013698,2]
[334851488,1723609402599,6418.05,0.00013972,2]
[334851489,1723609402658,2021.75,0.00013698,2]
[334851490,1723609402941,2021.75,0.00013972,2]
[334851491,1723609403750,7164.95,0.00013698,2]
[334851492,1723609403893,164.22324213,0.00013698,2]
[334851493,1723609403920,500.0,0.00013698,2]
[334851494,1723609404036,7164.95,0.00013972,2]
[334851495,1723609404178,500.0,0.00013972,2]
[334851496,1723609404211,500.0,0.00013698,2]
[334851497,1723609404305,522.45,0.00013698,2]
[334851498,1723609404498,500.0,0.00013972,2]
[334851499,1723609404587,522.45,0.00013972,2]
[334851500,1723609404861,1137.56,0.00013698,2]
[334851501,1723609405132,1137.56,0.00013972,2]
[334851502,1723609406787,500.0,0.00013698,2]
[334851503,1723609407097,500.0,0.00013972,2]
[334851504,1723609407605,500.0,0.00013698,2]
[334851505,1723609407872,500.0,0.00013972,2]
[334851506,1723609408106,500.0,0.00013698,2]
[334851507,1723609408378,500.0,0.00013972,2]
[334851508,1723609408411,500.0,0.00013698,2]
[334851509,1723609408460,1371.76570842,0.00013698,2]
[334851510,1723609408689,500.0,0.00013972,2]
[334851511,1723609408724,500.0,0.00013698,2]
[334851512,1723609408983,500.0,0.00013972,2]
[334851513,1723609410360,1610.92,0.00013698,2]
[334851514,1723609410387,1319.16,0.00013698,2]
[334851515,1723609410640,1319.16,0.00013972,2]
[334851516,1723609410675,1610.92,0.00013972,2]
[334851517,1723609411536,1427.54,0.00013698,2]
[334851519,1723609411830,1427.54,0.00013972,2]
[334851520,1723609412096,500.0,0.00013698,2]
[334851521,1723609412395,500.0,0.00013972,2]
[334851522,1723609413261,500.0,0.00013698,2]
[334851523,1723609413450,500.0,0.00013972,2]
[334851524,1723609413517,1567.12,0.00013698,2]
[334851525,1723609413761,763.0,0.00013698,2]
[334851526,1723609413851,1567.12,0.00013972,2]
[334851527,1723609414051,763.0,0.00013972,2]
[334851528,1723609414327,1228.12,0.00013698,2]
[334851529,1723609414356,500.0,0.00013698,2]
[334851530,1723609414587,1228.12,0.00013972,2]
[334851531,1723609415529,500.0,0.00013698,2]
[334851532,1723609415970,500.0,0.00013972,2]
[334851533,1723609416483,716.55,0.00013698,2]
[334851534,1723609416747,716.55,0.00013972,2]
[334851535,1723609419204,500.0,0.00013698,2]
[334851536,1723609419349,154.62,0.00013815,2]
[334851537,1723609419471,500.0,0.00013972,2]
[334851538,1723609419521,500.0,0.00013698,2]
[334851539,1723609419550,952.82,0.00013698,2]
[334851540,1723609419609,801.08,0.00013698,2]
[334851541,1723609419794,500.0,0.00013972,2]
[334851542,1723609419893,801.08,0.00013972,2]
[334851543,1723609420150,952.82,0.00013972,2]
[334851544,1723609421366,2869.04,0.00013698,2]
[334851545,1723609423829,2603.73,0.00013698,2]
[334851546,1723609423948,2603.73,0.00013972,2]
[334851547,1723609424045,500.0,0.00013698,2]
[334851548,1723609424158,500.0,0.00013698,2]
[334851549,1723609424345,500.0,0.00013972,2]
[334851550,1723609424451,500.0,0.00013972,2]
[334851551,1723609425531,500.0,0.00013698,2]
[334851552,1723609425783,500.0,0.00013972,2]
[334851553,1723609426055,2869.04,0.00013972,2]
[334851554,1723609426089,500.0,0.00013698,2]
[334851555,1723609426328,500.0,0.00013972,2]
[334851556,1723609427606,500.0,0.00013698,2]
[334851557,1723609427646,500.0,0.00013698,2]
[334851558,1723609427804,567.1,0.00013698,2]
[334851559,1723609427870,500.0,0.00013972,2]
[334851560,1723609427925,500.0,0.00013972,2]
[334851561,1723609427979,1245.34,0.00013698,2]
[334851562,1723609428061,567.1,0.00013972,2]
[334851563,1723609428259,1245.34,0.00013972,2]
[334851564,1723609428322,727.51,0.00013698,2]
[334851565,1723609428573,727.51,0.00013972,2]
[334851567,1723609430021,500.0,0.00013698,2]
[334851568,1723609430274,500.0,0.00013972,2]
[334851569,1723609430403,500.0,0.00013698,2]
[334851570,1723609430456,977.57,0.00013698,2]
[334851571,1723609430498,500.0,0.00013698,2]
[334851572,1723609430659,500.0,0.00013972,2]
[334851573,1723609430772,977.57,0.00013972,2]
[334851574,1723609430810,500.0,0.00013698,2]
[334851575,1723609430905,500.0,0.00013972,2]
[334851576,1723609431048,500.0,0.00013972,2]
[334851577,1723609431113,500.0,0.00013698,2]
[334851578,1723609431431,500.0,0.00013972,2]
[334851579,1723609431779,500.0,0.00013698,2]
[334851580,1723609432066,500.0,0.00013972,2]
[334851581,1723609433535,707.49,0.00013698,2]
[334851582,1723609433738,500.0,0.00013698,2]
[334851583,1723609434219,707.49,0.00013972,2]
[334851584,1723609434267,501.8612898,0.00013972,2]
[334851585,1723609434466,930.55,0.00013698,2]
[334851586,1723609434622,930.55,0.00013972,2]
[334851587,1723609434681,500.0,0.00013698,2]
[334851588,1723609434762,500.0,0.00013698,2]
[334851589,1723609434937,3893.58,0.00013698,2]
[334851590,1723609434971,500.0,0.00013972,2]
[334851591,1723609435045,500.0,0.00013972,2]
[334851592,1723609435227,3893.58,0.00013972,2]
[334851593,1723609435993,500.0,0.00013698,2]
[334851594,1723609436189,660.45,0.00013698,2]
[334851595,1723609436259,500.0,0.00013972,2]
[334851596,1723609436460,660.45,0.00013972,2]
[334851597,1723609437370,500.0,0.00013698,2]
[334851598,1723609437471,850.01,0.00013698,2]
[334851599,1723609437629,500.0,0.00013972,2]
[334851600,1723609437723,2948.27,0.00013698,2]
[334851601,1723609438009,2948.27,0.00013972,2]
[334851602,1723609438068,850.01,0.00013972,2]
[334851603,1723609439508,500.0,0.00013698,2]
[334851604,1723609439769,500.0,0.00013972,2]
[334851605,1723609440438,1078.02,0.00013698,2]
[334851606,1723609440508,1472.32,0.00013698,2]
[334851607,1723609440708,1078.02,0.00013972,2]
[334851608,1723609440938,1472.32,0.00013972,2]
[334851609,1723609441358,1088.19,0.00013698,2]
[334851610,1723609441642,1088.19,0.00013972,2]
[334851611,1723609442913,500.0,0.00013698,2]
[334851612,1723609443189,500.0,0.00013972,2]
[334851613,1723609443736,500.0,0.00013698,2]
[334851614,1723609443958,1314.87,0.00013698,2]
[334851615,1723609444020,500.0,0.00013972,2]
[334851616,1723609444690,1314.87,0.00013972,2]
[334851618,1723609445321,1574.73,0.00013698,2]
[334851619,1723609445504,385.96,0.00013724,2]
[334851620,1723609445600,1574.73,0.00013972,2]
[334851621,1723609446991,10660.49,0.00013698,2]
[334851622,1723609447269,10660.49,0.00013972,2]
[334851623,1723609448227,500.0,0.00013698,2]
[334851624,1723609448489,500.0,0.00013972,2]
[334851625,1723609448877,2450.71,0.00013698,2]
[334851626,1723609449676,2450.71,0.00013972,2]
[334851627,1723609449708,899.34,0.00013698,2]
[334851628,1723609449766,899.34,0.00013972,2]
[334851629,1723609449813,500.0,0.00013698,2]
[334851630,1723609450616,500.0,0.00013698,2]
[334851631,1723609451027,500.0,0.00013972,2]
[334851632,1723609451519,500.0,0.00013972,2]
[334851633,1723609453260,759.3,0.00013698,2]
[334851634,1723609453723,1530.37,0.00013698,2]
[334851635,1723609454491,7131.25,0.00013698,2]
[334851636,1723609454602,759.3,0.00013972,2]
[334851637,1723609455288,1530.37,0.00013972,2]
[334851638,1723609455493,889.18,0.00013698,2]
[334851639,1723609455864,7131.25,0.00013972,2]
[334851640,1723609456553,889.18,0.00013972,2]
[334851641,1723609456925,500.0,0.00013698,2]
[334851642,1723609457198,500.0,0.00013972,2]
[334851643,1723609457240,4804.52,0.00013698,2]
[334851644,1723609458328,4804.52,0.00013972,2]
[334851645,1723609458759,934.11,0.00013698,2]
[334851646,1723609459043,500.0,0.00013698,2]
[334851647,1723609459134,934.11,0.00013972,2]
[334851648,1723609459295,500.0,0.00013972,2]
[334851649,1723609460837,2486.68,0.00013698,2]
[334851650,1723609461092,2486.68,0.00013972,2]
[334851651,1723609462454,500.0,0.00013698,2]
[334851652,1723609462714,500.0,0.00013972,2]
[334851653,1723609464340,500.0,0.00013698,2]
[334851654,1723609464440,4001.61,0.00013698,2]
[334851655,1723609464708,4001.61,0.00013972,2]
[334851656,1723609464924,1121.46,0.00013698,2]
[334851657,1723609465032,1039.28,0.00013698,2]
[334851658,1723609465728,1039.28,0.00013972,2]
[334851659,1723609465765,1121.46,0.00013972,2]
[334851661,1723609467968,3969.67,0.00013698,2]
[334851662,1723609468224,3969.67,0.00013972,2]
[334851663,1723609468732,500.0,0.00013972,2]
[334851664,1723609469082,512.89,0.00013698,2]
[334851665,1723609469336,512.89,0.00013972,2]
[334851666,1723609469999,500.0,0.00013698,2]
[334851667,1723609470514,500.0,0.00013972,2]
[334851668,1723609470926,1909.79,0.00013698,2]
[334851669,1723609471176,1909.79,0.00013972,2]
[334851670,1723609471208,934.83,0.00013803,2]
[334851671,1723609471386,1333.72,0.00013698,2]
[334851672,1723609471697,1333.72,0.00013972,2]
[334851673,1723609473422,500.0,0.00013698,2]
[334851674,1723609473602,500.0,0.00013698,2]
[334851675,1723609473677,500.0,0.00013972,2]
[334851676,1723609473888,500.0,0.00013972,2]
[334851677,1723609473916,500.0,0.00013698,2]
[334851678,1723609474170,500.0,0.00013972,2]
[334851679,1723609476172,1035.79,0.00013698,2]
[334851680,1723609476250,1035.79,0.00013972,2]
[334851681,1723609476845,786.86,0.00013698,2]
[334851682,1723609477102,786.86,0.00013972,2]
[334851683,1723609477157,1047.47,0.00013698,2]
[334851684,1723609477388,1047.47,0.00013972,2]
[334851685,1723609477461,500.0,0.00013698,2]
[334851686,1723609477724,500.0,0.00013972,2]
[334851687,1723609478891,1259.4,0.00013698,2]
[334851688,1723609478979,1259.4,0.00013972,2]
[334851689,1723609480381,1560.79,0.00013698,2]
[334851690,1723609480705,1560.79,0.00013972,2]
[334851691,1723609481725,2403.98,0.00013698,2]
[334851692,1723609483105,1236.44,0.00013698,2]
[334851693,1723609483135,1015.66,0.00013698,2]
[334851694,1723609483198,2403.98,0.00013972,2]
[334851695,1723609483293,1015.66,0.00013972,2]
[334851696,1723609483331,1236.44,0.00013972,2]
[334851697,1723609483586,500.0,0.00013698,2]
[334851698,1723609483847,500.0,0.00013972,2]
[334851699,1723609485427,500.0,0.00013698,2]
[334851700,1723609485534,500.0,0.00013698,2]
[334851701,1723609485570,586.02,0.00013698,2]
[334851702,1723609485604,2386.53343546,0.00013999,2]
[334851703,1723609485639,500.0,0.00013698,2]
[334851704,1723609485685,500.0,0.00013972,2]
[334851705,1723609485804,586.02,0.00013972,2]
[334851706,1723609485838,500.0,0.00013972,2]
[334851707,1723609488506,3875.08,0.00013698,2]
[334851708,1723609488731,1406.26,0.00013698,2]
[334851709,1723609488766,3875.08,0.00013972,2]
[334851710,1723609488825,1094.67,0.00013698,2]
[334851711,1723609488991,1406.26,0.00013972,2]
[334851712,1723609489104,1094.67,0.00013972,2]
[334851713,1723609489687,500.0,0.00013698,2]
[334851714,1723609489939,500.0,0.00013972,2]
[334851716,1723609492284,500.0,0.00013698,2]
[334851717,1723609492546,500.0,0.00013972,2]
[334851718,1723609492755,572.66,0.00013698,2]
[334851719,1723609492901,500.0,0.00013698,2]
[334851720,1723609493025,572.66,0.00013972,2]
[334851721,1723609493113,899.03,0.00013698,2]
[334851722,1723609493151,500.0,0.00013972,2]
[334851723,1723609493260,5175.45,0.00013698,2]
[334851724,1723609493386,899.03,0.00013972,2]
[334851725,1723609493511,5175.45,0.00013972,2]
[334851726,1723609493977,664.92,0.00013698,2]
[334851727,1723609494254,664.92,0.00013972,2]
[334851728,1723609494302,756.4,0.00013698,2]
[334851729,1723609494696,756.4,0.00013972,2]
[334851731,1723609495586,165.13986807,0.00013698,2]
[334851732,1723609495847,749.54,0.00013698,2]
[334851733,1723609495952,500.0,0.00013698,2]
[334851734,1723609496124,749.54,0.00013972,2]
[334851735,1723609496155,500.0,0.00013698,2]
[334851736,1723609496235,500.0,0.00013972,2]
[334851737,1723609496387,500.0,0.00013972,2]
[334851738,1723609497756,500.0,0.00013698,2]
[334851739,1723609498031,500.0,0.00013972,2]
[334851740,1723609498799,1704.02,0.00013698,2]
[334851742,1723609499320,1704.02,0.00013972,2]
[334851743,1723609500431,534.59,0.00013698,2]
[334851744,1723609500517,500.0,0.00013698,2]
[334851745,1723609500715,534.59,0.00013972,2]
[334851746,1723609500776,500.0,0.00013972,2]
[334851747,1723609501753,500.0,0.00013698,2]
[334851748,1723609501802,602.19,0.00013698,2]
[334851749,1723609502003,1459.09,0.00013698,2]
[334851750,1723609502058,500.0,0.00013972,2]
[334851751,1723609502095,602.19,0.00013972,2]
[334851752,1723609502127,500.0,0.00013698,2]
[334851753,1723609502283,1459.09,0.00013972,2]
[334851754,1723609502547,500.0,0.00013972,2]
[334851755,1723609503405,1005.0,0.00013698,2]
[334851756,1723609503704,1005.0,0.00013972,2]
[334851757,1723609504931,500.0,0.00013698,2]
[334851758,1723609504975,500.0,0.00013698,2]
[334851759,1723609505082,500.0,0.00013972,2]
[334851760,1723609505134,623.20281446,0.00013972,2]
[334851761,1723609505707,500.0,0.00013698,2]
[334851762,1723609506088,500.0,0.00013972,2]
[334851763,1723609506225,549.62,0.00013698,2]
[334851764,1723609506255,1019.17,0.00013698,2]
[334851765,1723609506340,633.91,0.00013698,2]
[334851766,1723609506492,1019.17,0.00013972,2]
[334851767,1723609506527,549.62,0.00013972,2]
[334851768,1723609506624,554.55,0.00013698,2]
[334851769,1723609506795,500.0,0.00013698,2]
[334851770,1723609506903,554.55,0.00013972,2]
[334851771,1723609506934,633.91,0.00013972,2]
[334851772,1723609507089,500.0,0.00013972,2]
[334851773,1723609507784,500.0,0.00013698,2]
[334851774,1723609508628,819.75,0.00013698,2]
[334851775,1723609508892,819.75,0.00013972,2]
[334851776,1723609508969,203808.67516424,0.00011,2]
[334851777,1723609509964,1088.07,0.00013698,2]
[334851778,1723609510223,1088.07,0.00013972,2]
[334851779,1723609510424,3220.84,0.00013698,2]
[334851780,1723609510710,3220.84,0.00013972,2]
[334851781,1723609510754,500.0,0.00013698,2]
[334851782,1723609511010,500.0,0.00013972,2]
[334851783,1723609511198,500.0,0.00013698,2]
[334851784,1723609511468,500.0,0.00013972,2]
[334851785,1723609512353,500.0,0.00013698,2]
[334851786,1723609512617,500.0,0.00013972,2]
[334851787,1723609512771,1076.76,0.00013698,2]
[334851788,1723609513020,1076.76,0.00013972,2]
[334851789,1723609513119,116131.40798025,0.0001095,2]
[334851790,1723609514987,1668.87,0.00013698,2]
[334851791,1723609515288,1668.87,0.00013972,2]
[334851792,1723609515911,500.0,0.00013698,2]
[334851793,1723609516173,500.0,0.00013972,2]
[334851795,1723609517390,500.0,0.00013698,2]
[334851796,1723609517593,642.2,0.00013698,2]
[334851797,1723609517647,1310.19,0.00013698,2]
[334851798,1723609517685,458.77042317,0.00013972,2]
[334851799,1723609518414,642.2,0.00013972,2]
[334851800,1723609518451,1310.19,0.00013972,2]
[334851801,1723609520159,1078.36,0.00013698,2]
[334851802,1723609520491,1078.36,0.00013972,2]
[334851803,1723609521043,7376.68,0.00013698,2]
[334851804,1723609521259,500.0,0.00013698,2]
[334851805,1723609521291,7376.68,0.00013972,2]
[334851806,1723609521609,1840.14,0.00013698,2]
[334851807,1723609521657,500.0,0.00013972,2]
[334851808,1723609521743,1840.14,0.00013972,2]
[334851809,1723609521829,600.13,0.00013698,2]
[334851810,1723609521862,500.0,0.00013698,2]
[334851811,1723609521895,2366.93,0.00013698,2]
[334851812,1723609521932,884.91,0.00013698,2]
[334851813,1723609522095,600.13,0.00013972,2]
[334851814,1723609522132,500.0,0.00013972,2]
[334851815,1723609522164,2366.93,0.00013972,2]
[334851816,1723609522195,884.91,0.00013972,2]
[334851817,1723609523177,2689.92,0.00013698,2]
[334851818,1723609523434,8612.63,0.00013698,2]
[334851819,1723609523467,2689.92,0.00013972,2]
[334851820,1723609523609,500.0,0.00013698,2]
[334851821,1723609523702,8612.63,0.00013972,2]
[334851822,1723609523876,500.0,0.00013972,2]
[334851823,1723609523930,500.0,0.00013698,2]
[334851824,1723609524211,500.0,0.00013972,2]
[334851825,1723609524970,500.0,0.00013698,2]
[334851826,1723609525227,413.59878737,0.00013972,2]
[334851827,1723609529237,500.0,0.00013698,2]
[334851828,1723609529371,500.0,0.00013698,2]
[334851829,1723609529494,500.0,0.00013972,2]
[334851830,1723609529626,500.0,0.00013972,2]
[334851831,1723609530109,500.0,0.00013698,2]
[334851832,1723609530372,500.0,0.00013972,2]
[334851833,1723609530567,989.3,0.00013698,2]
[334851834,1723609530841,989.3,0.00013972,2]
[334851835,1723609531691,500.0,0.00013698,2]
[334851836,1723609531919,500.0,0.00013972,2]
[334851838,1723609532137,4480.77,0.00013698,2]
[334851839,1723609532187,6994.31,0.00013698,2]
[334851840,1723609532407,4480.77,0.00013972,2]
[334851841,1723609532457,6994.31,0.00013972,2]
[334851842,1723609533625,978.57,0.00013698,2]
[334851843,1723609533923,978.57,0.00013972,2]
[334851844,1723609535079,624.47,0.00013698,2]
[334851845,1723609535417,624.47,0.00013972,2]
[334851846,1723609536865,500.0,0.00013698,2]
[334851847,1723609537112,500.0,0.00013972,2]
[334851848,1723609537381,500.0,0.00013698,2]
[334851849,1723609537668,500.0,0.00013972,2]
[334851850,1723609538041,3083.11,0.00013698,2]
[334851851,1723609538250,588.4,0.00013698,2]
[334851852,1723609538301,3083.11,0.00013972,2]
[334851853,1723609538810,588.4,0.00013972,2]
[334851854,1723609540456,1404.76,0.00013698,2]
[334851855,1723609540742,1404.76,0.00013972,2]
[334851856,1723609541326,870.91,0.00013698,2]
[334851857,1723609541387,21183.82062611,0.0001099,3]
[334851858,1723609541542,7603.03,0.00013698,2]
[334851859,1723609541614,870.91,0.00013972,2]
[334851860,1723609543010,7603.03,0.00013972,2]
[334851861,1723609543088,1387.64,0.00013698,2]
[334851862,1723609543315,1387.64,0.00013972,2]
[334851863,1723609543571,1310.49655341,0.00013698,2]
[334851864,1723609544340,933.77,0.00013698,2]
[334851865,1723609544621,933.77,0.00013972,2]
[334851866,1723609546158,500.0,0.00013698,2]
[334851867,1723609546431,500.0,0.00013972,2]
[334851869,1723609548982,518.11,0.00013698,2]
[334851870,1723609549254,518.11,0.00013972,2]
[334851871,1723609549954,1213.63,0.00013698,2]
[334851872,1723609550105,1213.63,0.00013972,2]
[334851873,1723609550146,1348.26,0.00013698,2]
[334851874,1723609550196,500.0,0.00013698,2]
[334851875,1723609550235,1348.26,0.00013972,2]
[334851876,1723609550409,500.0,0.00013972,2]
[334851877,1723609551144,34383.11,0.00013698,2]
[334851878,1723609551340,593.97,0.00013698,2]
[334851879,1723609551436,34383.11,0.00013972,2]
[334851880,1723609551929,1373.06,0.00013698,2]
[334851881,1723609552046,500.0,0.00013698,2]
[334851882,1723609552145,671.92,0.00013698,2]
[334851883,1723609552195,1373.06,0.00013972,2]
[334851884,1723609552236,500.0,0.00013972,2]
[334851885,1723609552277,671.92,0.00013972,2]
[334851886,1723609552524,670.51,0.00013698,2]
[334851887,1723609552557,500.0,0.00013698,2]
[334851888,1723609552761,593.97,0.00013972,2]
[334851889,1723609552790,670.51,0.00013972,2]
[334851890,1723609552824,500.0,0.00013972,2]
[334851891,1723609553468,2281.42,0.00013698,2]
[334851892,1723609553721,1652.86,0.00013698,2]
[334851893,1723609553761,2281.42,0.00013972,2]
[334851894,1723609553803,761.72317161,0.00013972,2]
[334851895,1723609553980,1652.86,0.00013972,2]
[334851896,1723609554737,500.0,0.00013698,2]
[334851897,1723609555375,500.0,0.00013972,2]
[334851898,1723609556056,500.0,0.00013698,2]
[334851899,1723609556091,500.0,0.00013698,2]
[334851900,1723609556336,500.0,0.00013972,2]
[334851901,1723609556367,500.0,0.00013972,2]
[334851902,1723609558903,1787.04,0.00013698,2]
[334851903,1723609559175,1787.04,0.00013972,2]
[334851904,1723609561264,13937.04,0.00013698,2]
[334851905,1723609561531,13937.04,0.00013972,2]
[334851906,1723609561565,643.43,0.00013698,2]
[334851907,1723609561812,643.43,0.00013972,2]
[334851908,1723609562639,973.59028936,0.00013972,2]
[334851910,1723609563452,1248.5,0.00013698,2]
[334851911,1723609563601,500.0,0.00013698,2]
[334851912,1723609563733,1248.5,0.00013972,2]
[334851913,1723609563879,500.0,0.00013972,2]
[334851914,1723609564012,3739.78,0.00013698,2]
[334851915,1723609564314,3739.78,0.00013972,2]
[334851916,1723609564348,518.47,0.00013698,2]
[334851917,1723609564610,518.47,0.00013972,2]
[334851918,1723609565003,500.0,0.00013698,2]
[334851919,1723609565257,500.0,0.00013972,2]
[334851920,1723609566149,1370.1,0.00013698,2]
[334851921,1723609566388,1086.21,0.00013698,2]
[334851922,1723609566464,1370.1,0.00013972,2]
[334851923,1723609566676,1086.21,0.00013972,2]
[334851924,1723609568660,1223.89523949,0.00013972,2]
[334851925,1723609569353,1506.47,0.00013698,2]
[334851926,1723609569604,1506.47,0.00013972,2]
[334851927,1723609571494,3534.93,0.00013698,2]
[334851928,1723609571969,3534.93,0.00013972,2]
[334851929,1723609572202,500.0,0.00013698,2]
[334851930,1723609572460,500.0,0.00013972,2]
[334851931,1723609572590,2115.69,0.00013698,2]
[334851932,1723609572779,1952.92,0.00013698,2]
[334851933,1723609572866,2115.69,0.00013972,2]
[334851934,1723609573048,1952.92,0.00013972,2]
[334851935,1723609573194,500.0,0.00013698,2]
[334851936,1723609573790,500.0,0.00013972,2]
[334851937,1723609574004,1576.63,0.00013698,2]
[334851938,1723609574269,1576.63,0.00013972,2]